Cogmind - Beta 16 @@@ ROGUE MODE // 2025.10.26 @ 19:18:15 Player: Mxykikker Result: Self-destructed Performance ------------- Evolutions (1) 500 Regions Visited (2) 400 Robots Destroyed (28) 140 Value Destroyed (555) 555 Prototype IDs (0) 0 Alien Tech Used (0) 0 Bonus (0) 0 TOTAL SCORE: 1595 Bonus ------- None Cogmind --------- Core Integrity 282/400 Matter 105/300 Energy 15/125 System Corruption 2% Temperature Cool (2) Movement Flying (40) Location -9/Materials Parts ------- > --- POWER (1) -------- Light Ion Engine > --- PROPULSION (2) --- Flight Unit > --- UTILITY (4) ------ Weight Redist. System Signal Interpreter ECM Suite > --- WEAPON (2) ------- Mining Claw > --- INVENTORY (5) ---- Plasma Cutter Mining Claw Mining Claw Peak State ------------ > --- POWER ------------ Ion Engine > --- PROPULSION ------- Flight Unit Flight Unit > --- UTILITY ---------- Weight Redist. System Sensor Array Signal Interpreter ECM Suite > --- WEAPON ----------- Rocket Launcher Mining Claw > --- INVENTORY -------- Plasma Cutter Mining Claw Mining Claw [Rating: 11] Favorites ----------- Power Ion Engine Engine Ion Engine Propulsion Wheel Wheel Wheel Flight Unit Flight Unit Utility ECM Suite Device ECM Suite Storage Small Storage Unit Processor Signal Interpreter Weapon Grenade Launcher Energy Gun EM Pulse Gun Ballistic Gun Light Assault Rifle Launcher Grenade Launcher Slashing Weapon Mining Claw Build | -11 -10 -9 ------- Run | Yrd Mat Mat Slots Evolved 2 | . . 2 Power . | . . . Propulsion . | . . . Utility 2 | . . 2 Weapon . | . . . Parts Attached 17 | 6 2 9 Power 2 | 1 . 1 Engine 2 | 1 . 1 Core . | . . . Reactor . | . . . Propulsion 5 | 2 . 3 Treads . | . . . Leg . | . . . Wheel 2 | 2 . . Hover . | . . . Flight 3 | . . 3 Utility 5 | 1 1 3 Device 3 | . 1 2 Storage 1 | 1 . . Processor 1 | . . 1 Hackware . | . . . Protection . | . . . Artifact . | . . . Weapon 5 | 2 1 2 Energy Gun 1 | 1 . . Energy Cannon . | . . . Ballistic Gun 1 | 1 . . Ballistic Cannon . | . . . Launcher 2 | . 1 1 Special Weapon . | . . . Impact Weapon . | . . . Slashing Weapon 1 | . . 1 Piercing Weapon . | . . . Special Melee Weapon . | . . . Unidentified Prototypes . | . . . Parts Lost 8 | . 3 5 Power 1 | . . 1 Propulsion 3 | . 1 2 Utility 1 | . . 1 Weapon 3 | . 2 1 Highest Loss Streak 5 | . 2 5 To Critical Strikes . | . . . Average Backups 2 | . 2 3 Power . | . . . Propulsion . | . . . Utility . | . 1 . Weapon 1 | . . 1 Tool/Special . | . . . Unused Backups 5 | . 1 4 Power . | . . . Propulsion . | . . . Utility . | . . . Weapon 4 | . 1 3 Tool/Special 1 | . . 1 Average Slot Usage (%) 84 | . 90 71 Engine 11 | . 14 5 Wheel 19 | . 27 . Flight 6 | . . 20 Device 16 | . 11 25 Storage 11 | . 14 5 Processor 3 | . . 10 Energy Gun 5 | . 7 . Ballistic Gun 3 | . 5 . Launcher 6 | . 7 2 Peak Build Rating 11 | 6 7 11 Average Rating 6 | 4 6 7 On Entrance 3 | . 6 4 Avg Prop Armor Cover (%) . | . . . Naked Turns . | . . . Heaviest Build 17 | 13 17 14 Greatest Support 20 | 20 20 14 Greatest Overweight (x) 1 | . 1 . Average Overweight (x) . | . . . Largest Inventory Capacity 8 | 8 8 8 Average Capacity 7 | 6 8 6 Most Carried 6 | . 5 6 Average Carried 2 | . 2 3 Final Capacity 8 | 8 8 5 Final Carried 5 | . 5 3 Class Distribution -------------------- 100% | Mutant Dominant Class ---------------- Mutant | -10/Materials Mutant | -9/Materials Resources | -11 -10 -9 ----------- Run | Yrd Mat Mat Matter Collected 460 | 240 220 . Remotely . | . . . Salvage Created 506 | . 413 93 Parts 35 | . 25 10 Haulers Intercepted 1 | . . 1 Recyclers Shooed 2 | . 1 1 Parts Field Recycled . | . . . Retrieved Matter . | . . . Parts Self-Destructed . | . . . Prevented . | . . . Parts Restored . | . . . Kills | -11 -10 -9 ------- Run | Yrd Mat Mat Combat Hostiles Destroyed 18 | . 11 7 Guns 1 | . 1 . AOE 17 | . 10 7 Classes Destroyed 8 | . 7 1 Worker 3 | . 3 . Tunneler 1 | . 1 . Hauler 1 | . . 1 Recycler 1 | . 1 . Operator 2 | . 2 . Watcher 2 | . 2 . Swarmer 8 | . 3 5 Grunt 10 | . 8 2 Best Kill Streak 10 | . 10 8 Combat Bots Only 7 | . 5 7 Max Kills in Single Turn 4 | . 4 3 Gunslinging . | . . . Exploded 2 | . 2 2 Melee . | . . . Uniques/NPCs Destroyed . | . . . Combat | -11 -10 -9 -------- Run | Yrd Mat Mat Hostile Shots Fired 114 | . 53 61 Missed 46 | . 18 28 Hits 68 | . 35 33 Projectile 68 | . 35 33 Damage Taken 702 | . 369 333 Core 209 | . 91 118 Absorbed by Shields . | . . . Core Remaining (%) 81 | 100 63 . Volleys Fired 34 | . 25 9 Largest 2 | . 2 1 Hottest 70 | . 70 33 Shots Fired 46 | . 37 9 Gun 21 | . 21 . Cannon . | . . . Launcher 25 | . 16 9 Special . | . . . Kinetic 6 | . 6 . Thermal . | . . . Explosive 25 | . 16 9 Electromagnetic 15 | . 15 . Robot Hit Streak 4 | . 4 2 Robot Miss Streak 3 | . 3 1 Penetration Max . | . . . Secondary Targets . | . . . Shots Hit Robots 19 | . 15 4 Core Hits 43 | . 32 11 Critical Kills . | . . . Critical Parts Destroyed . | . . . Critical Strikes . | . . . Melee Attacks 1 | . . 1 Impact . | . . . Slashing 1 | . . 1 Piercing . | . . . Sneak Attacks . | . . . Combat Hostiles . | . . . Follow-up Attacks . | . . . Damage Inflicted 1646 | . 1084 562 Guns 142 | . 142 . Cannons . | . . . Explosions 1504 | . 942 562 Melee . | . . . Ramming . | . . . Kinetic 33 | . 33 . Thermal 43 | . 43 . Explosive 1461 | . 899 562 Electromagnetic 109 | . 109 . Impact . | . . . Slashing . | . . . Piercing . | . . . Highest Corruption 2 | . . 2 Average Corruption 2 | . . 2 Corruption Purged . | . . . Corruption Blocked . | . . . Effects 1 | . . 1 Parts Fused 1 | . . 1 Overload Shots . | . . . Overflow Damage 42 | . 42 . Projectiles . | . . . Explosions 42 | . 42 . Melee . | . . . Knockbacks . | . . . Impact . | . . . Kinetic . | . . . Secondary . | . . . Self-Inflicted Damage 65 | . 32 33 Shots 3 | . 1 2 Rammed . | . . . Targets Rammed . | . . . Kicked . | . . . Crushed . | . . . Highest Temperature 65 | . 65 . Average Temperature 21 | . 21 . Received Heat Transfer 114 | . 90 24 Siege Activations . | . . . Martial Activations . | . . . Shielding Activations . | . . . Robots Disrupted . | . . . Combat Hostiles . | . . . Robots Corrupted . | . . . Combat Hostiles . | . . . Parts Fried 1 | . 1 . Impact Corruptions . | . . . Robots Melted . | . . . Combat Hostiles . | . . . Parts Melted . | . . . Heat Transferred 50 | . 50 . Parts Sabotaged . | . . . Parts Stolen . | . . . Parts Stripped . | . . . Power Chain Reactions 1 | . 1 . Alert | -11 -10 -9 ------- Run | Yrd Mat Mat Maximum Alert Level 1 | . 1 1 Low Security (%) 93 | 100 95 87 Level 1 6 | . 4 12 Level 2 . | . . . Level 3 . | . . . Level 4 . | . . . Level 5 . | . . . High Security . | . . . Max Security . | . . . Peak Influence 337 | . 231 337 Initial 42 | . . 42 Average 58 | . 60 65 Influence Increases 879 | . 477 402 Destroy 0b10 Robot/C 360 | . 220 140 Destroy 0b10 Robot/NC 50 | . 45 5 Destroy Leader 66 | . 44 22 Successful Hack 12 | . 7 5 Select Force Hacks 30 | . 30 . Disable Machine 60 | . 30 30 Destroy Structure 151 | . 101 50 Partial Spotted 45 | . . 45 Lose Combat Pursuer 105 | . . 105 Influence Decreases 577 | . 376 201 Entered New Map 59 | . . 59 Time Decay 288 | . 196 92 Lost Part 80 | . 30 50 Purge Threat 150 | . 150 . Squads Dispatched 4 | . 3 1 Investigation 3 | . 2 1 Extermination . | . . . Reinforcement 1 | . 1 . Assault . | . . . Garrison . | . . . Intercept . | . . . Searches Triggered . | . . . Construction Impeded . | . . . Haulers Reinforced . | . . . Active Scanning Responses . | . . . Cargo Convoy Interrupts . | . . . Stealth | -11 -10 -9 --------- Run | Yrd Mat Mat Distress Signals 5 | . 1 4 Communications Jammed . | . . . Distress Signals . | . . . Times Spotted 38 | . 22 16 Peak Tracking Total 11 | . 6 11 Tactical Retreats 3 | . . 3 Traps | -11 -10 -9 ------- Run | Yrd Mat Mat Traps Triggered 1 | . . 1 Indirectly . | . . . Trap Hack Attempts . | . . . Triggered . | . . . Disarmed . | . . . Reprogrammed . | . . . Reused . | . . . Traps Extracted . | . . . Installed . | . . . Triggered . | . . . Machines | -11 -10 -9 ---------- Run | Yrd Mat Mat Machines Disabled 6 | . 2 4 Max in Single Turn 2 | . 1 2 Machines Repaired . | . . . Machines Dismantled . | . . . Machines Sabotaged . | . . . Overloaded Fab Kills . | . . . Hacking | -11 -10 -9 --------- Run | Yrd Mat Mat Machines Accessed 5 | . 4 1 Terminals 4 | . 3 1 Fabricators . | . . . Repair Stations . | . . . Recycling Units 1 | . 1 . Scanalyzers . | . . . Garrison Access . | . . . Total Hacks 14 | . 11 3 Successful 6 | . 5 1 Failed 8 | . 6 2 Catastrophic 1 | . 1 . Database Lockouts . | . . . Manual 2 | . 2 . Terminals 11 | . 8 3 Fabricators . | . . . Repair Stations . | . . . Recycling Units 3 | . 3 . Scanalyzers . | . . . Garrison Access . | . . . Terminal Hacks 3 | . 2 1 Unreport Threat 1 | . 1 . Hauler Manifests 1 | . . 1 Registered Components 1 | . 1 . Fabricator Hacks . | . . . Repair Station Hacks . | . . . Recycling Unit Hacks 1 | . 1 . Report Inventory 1 | . 1 . Scanalyzer . | . . . Garrison Access Hacks . | . . . Unauthorized Hacks 2 | . 2 . Terminals . | . . . Fabricators . | . . . Repair Stations . | . . . Recycling Units 2 | . 2 . Recyclers 1 | . 1 . Tunnel 1 | . 1 . Scanalyzers . | . . . Garrison Access . | . . . Data Cores Recovered 1 | . 1 . Used 1 | . 1 . Hacking Detections 4 | . 3 1 Full Trace Events 2 | . 1 1 Feedback Events . | . . . Feedback Blocked . | . . . Robot Schematics Acquired . | . . . Robots Built . | . . . Authchips . | . . . Time . | . . . Total Robot Build Rating . | . . . Part Schematics Acquired . | . . . Parts Built . | . . . Authchips . | . . . Time . | . . . Total Part Build Rating . | . . . Part Studies Acquired . | . . . Parts Repaired . | . . . Time . | . . . Parts Recycled . | . . . Recycled Matter . | . . . Retrieved Matter . | . . . Retrieved Components . | . . . Parts Scanalyzed . | . . . Part Schematics Acquired . | . . . Parts Damaged . | . . . Bothacking | -11 -10 -9 ------------ Run | Yrd Mat Mat Used RIF Installer . | . . . Robots Hacked . | . . . Non-combat . | . . . Combat . | . . . Robot Hacks Applied . | . . . Relay Couplers Released . | . . . Fabnet Peak Effective % . | . . . Robots Rewired . | . . . Allies Hacked . | . . . Hacks Repelled . | . . . Allies | -11 -10 -9 -------- Run | Yrd Mat Mat Total Allies . | . . . Largest Group . | . . . Highest-Rated Group . | . . . Highest-Rated Ally . | . . . Total Orders . | . . . Ally Attacks . | . . . Total Damage . | . . . Kills . | . . . Allies Corrupted . | . . . Allies Melted . | . . . Intel | -11 -10 -9 ------- Run | Yrd Mat Mat Active Infowar (turns) 605 | . 408 197 Sensors 193 | . . 193 ECM 483 | . 408 75 Robot Analysis Total . | . . . Derelict Logs Recovered . | . . . Drone Launches . | . . . Drone Recoveries . | . . . Exploration | -11 -10 -9 ------------- Run | Yrd Mat Mat Turns Passed 716 | 36 466 214 Spaces Moved 949 | 34 469 446 Core 1 | 1 . . Treads . | . . . Legs . | . . . Wheels 502 | 33 469 . Hover . | . . . Flight 446 | . . 446 Fastest Speed 37 | 50 80 37 Average Speed 59 | 79 80 37 Slowest Speed 95 | 80 95 40 Overloaded Moves . | . . . Propulsion Burnouts . | . . . Robots Hopped 5 | . . 5 Potential Cave-ins . | . . . Cave-ins Triggered . | . . . Exploration Rate (%) 40 | 3 69 48 Regions Visited 2 Branch Regions . Pre-discovered Areas 1 | . 1 . Known Exits Taken . | . . . Unknown Exits Taken 2 | 1 1 . Scrap Searched . | . . . Spaces Dug 1 | . . 1 Terrain Destroyed 162 | . 114 48 Melee 1 | . . 1 Projectile . | . . . AOE 161 | . 114 47 Terrain Rammed . | . . . Walls Destroyed . | . . . Machines Disabled . | . . . Actions | -11 -10 -9 --------- Run | Yrd Mat Mat Total 1040 | 39 520 481 Wait 18 | . 12 6 Move 937 | 33 468 436 Hop 5 | . . 5 Pick Up 13 | . 7 6 Fast Attach 9 | 6 1 2 Attach 9 | . . 9 Detach 4 | . . 4 Swap 5 | . 5 . Drop 5 | . 2 3 Fire 34 | . 25 9 Melee 1 | . . 1 Ram . | . . . Kick . | . . . Crush . | . . . Escape Stasis . | . . . Rewire . | . . . Trap . | . . . Miscellaneous . | . . . Route ------- -11/Scrapyard -10/Materials (discovered 4 exits: *Mat x3 / [*Min]) -9/Materials (discovered 3 exits: [*Mat x2] / *Min) History --------- Turn | Location | Event 22 | -11/Scrapyard | Discovered new exit (range 15) 37 | -11/Scrapyard | Entered Materials 301 | -10/Materials | Build established: Mutant 317 | -10/Materials | Discovered new exit (range 8) 352 | -10/Materials | Discovered new exit (range 7) 398 | -10/Materials | Discovered new exit (range 16) 449 | -10/Materials | Discovered new exit (range 15) 503 | -10/Materials | Entered another Materials area 503 | -9/Materials | Evolved 2 slots: Utility x2 601 | -9/Materials | Discovered new exit (range 16) 676 | -9/Materials | Discovered new exit (range 16) 681 | -9/Materials | Discovered new exit (range 16) 706 | -9/Materials | Identified exit to Mines 717 | -9/Materials | Self-destructed Last Messages --------------- 00695_ Terminal disabled. 00697_ U-05 Engineer lays Concrete. 00697_ G-34 Mercenary destroyed. 00699_ U-05 Engineer lays Concrete. 00700_ Machine disabled. 00700_ S-10 Pest destroyed. 00700_ U-05 Engineer lays Concrete. 00700_ K-01 Serf cleans the Nuclear Reactor. 00701_ U-05 Engineer lays Concrete. 00705_ The unstable cave ceiling collapses. 00706_ EXIT=IDENTIFIED: MINES 00709_ Flight Unit destroyed. 00711_ U-05 Engineer builds a Wall. 00711_ Rocket Launcher destroyed. 00712_ Acquired Lgt. Ion Engine. 00713_ K-01 Serf collects debris. 00714_ Sensor Array destroyed. 00714_ Acquired Flight Unit. 00715_ U-05 Engineer lays Concrete. 00717_ Flight Unit destroyed. Map ----- +----------------------------------------------------+ | ##??# # #????????????????????????????????? | | #???#######+### ####### #????????????????????????? | | ########## ?????????????????????????? | | + # #??????????????????????????? | | ## # % ???????????????????????? | | ## + ######### ???????????????????????? | | ## # #???????? ???????????????????????? | | ## # #???????? ???????????????????????? | | ########## #???????? ???????????????????????? | | #?# ????# #????????# #??????????????????????? | | #?# ??# #????##### #??????????????????????? | | #?# """ # #????#!! #??????????????????????? | | ### """ + #????#!! #??????????????????????? | | ## """ # #?????[[ #??????????????????????? | | ### ??# #??????[ #??????????????????????? | | ########?# #??????? #??????????????????????? | | #?# #???????? "??????????????????????? | | "" #?# #????????#t #??????????????????????? | | "" #?# #???????## s####???????????????????? | | "" #?# #???????# "#???????????????????? | | #?# #???????# ""#???????????????????? | | "" #?# #???????# ||##??????????????????? | | Y" #?# #???????# > " #??????????????????? | | "" #?# #???????# % | #??????????????????? | | ?? #?# #???????# #??????????????????? | | #??????#?# #???????# @ #??????????????????? | | ?????????# #?####### ####???????????????? | | ?????????# #?# [ #???????????????? | | ?????????# #?#""" #???????????????? | | ?????????# #?#""" "" #???????????????? | | ????????# #?#""" "" #???????????????? | | !???????# #?# "" #???????????????? | | !#??????# #?# # !#???????????????? | | !#??????# #?####### #######???????????????? | | !##??????# #???????## ##########????????????? | | ##???????# #???????##u + ?????????????? | | ########## ########## #?????????????????? | | ^^ #?????????????????? | | ^ """?????????????? | | """?????????????? | | #########+########### """?????????????? | | ##### ##?????# *** ?????????????? | | ## """"" #??????## %* * * ##+#???????????? | | "" ## """"" #??????? * * % #???????????? | | "" ## """"" #??# =%! ####???????????? | | "" ## """"" #??# %= [ ##??????????????? | | "" ## """"" # ###???????????????? | | "" ## ??"""" # ?????????????????? | | ##?????"" # ????????????????? | | #??????? # # ???????????????? | +----------------------------------------------------+ Best States ------------- Heat Dissipation 28 Energy Generation 10 Energy Capacity 250 Matter Stores 300 Matter Capacity 300 Sight Range 16 Robot Scan Range 14 Terrain Scan Density 10 ECM Strength 1 Additional Mass Support 6 Evasion (%) 62 Item Schematics ----------------- None Robot Schematics ------------------ None Fabricated ------------ Nothing Repaired ---------- Nothing Studied --------- None Alien Tech Used ----------------- None Achievements -------------- None Challenges ------------ None Game ------ Seed ChromaticMappingDisplacer Manual? 0 Play Time 00:16:32 Cumulative 85.8 hours Start 2025.10.26 @ 18:56:35 End 2025.10.26 @ 19:18:15 Sessions 1 Manual Loads 0 Difficulty Rogue Special Mode None Game No. 135 Rogue 135 Adventurer 0 Explorer 0 Win Type - Total 0 Types 0/0/0/0/0/0/0/0/0/0 Lore% 28 Gallery% 31 Achievement% 24 Wizard Run 0 Options --------- Layout 1 ASCII 0 Keyboard 0 Movement Arrows Keybinds 0 Fullscreen 1 Font 24/Smallcaps Map View 50x35 Zoom Use 0% Tactical HUD 1 Map Filters NONE Filters NONE Steam 1 RUN: d143e839-ee55-4c03-af01-d70945531eb8